bitfinex/quotes_SOLUSD_20250802
["timestamp","ask_amount","ask_price","bid_price","bid_amount"]
[1754118559202,76.50755766,162.81,162.8,0.06]
[1754118563430,65.16275486,162.81,162.8,0.06]
[1754118563742,76.50755766,162.81,162.8,0.06]
[1754118564401,82.64968652,162.81,162.8,0.06]
[1754118564921,76.50755766,162.81,162.8,0.06]
[1754118565431,82.64968652,162.81,162.8,0.06]
[1754118566050,99.13969199,162.81,162.8,0.06]
[1754118566211,99.13969199,162.81,162.79,0.1]
[1754118566212,16.78468397,162.8,162.79,0.1]
[1754118566417,39.47428957,162.8,162.79,0.1]
[1754118566619,26.0,162.77,162.69,0.66]
[1754118566827,11.3448028,162.73,162.69,0.66]
[1754118567018,43.56,162.72,162.69,0.66]
[1754118567211,43.56,162.72,162.7,0.66]
[1754118567830,43.56,162.72,162.64,0.1]
[1754118568046,43.56,162.72,162.68,11.3448028]
[1754118568252,12.0048028,162.71,162.65,11.3448028]
[1754118568444,43.56,162.7,162.65,11.3448028]
[1754118568631,54.9048028,162.7,162.65,11.3448028]
[1754118568823,43.56,162.7,162.65,11.3448028]
[1754118569926,43.56,162.7,162.66,0.66]
[1754118570129,43.56,162.7,162.66,12.0048028]
[1754118570633,43.56,162.7,162.67,0.7]
[1754118570837,44.24,162.7,162.66,11.3448028]
[1754118571037,44.24,162.7,162.66,12.0448028]
[1754118571230,55.5848028,162.7,162.66,0.7]
[1754118571663,11.3448028,162.68,162.64,0.8]
[1754118571827,43.56,162.67,162.64,0.8]
[1754118572463,54.9048028,162.67,162.64,0.1]
[1754118572637,55.5848028,162.67,162.64,0.1]
[1754118573741,44.24,162.67,162.64,0.1]
[1754118573946,55.5848028,162.67,162.64,0.1]
[1754118574251,12.0248028,162.66,162.64,0.1]
[1754118574437,43.56,162.65,162.64,0.1]
[1754118574637,55.5848028,162.65,162.64,0.1]
[1754118575453,81.5848028,162.65,162.64,0.1]
[1754118575653,72.36948677,162.65,162.64,0.1]
[1754118576055,76.45951655,162.65,162.64,0.1]
[1754118576362,16.78468397,162.6,162.52,0.7]
[1754118576656,11.3448028,162.55,162.5,0.7]
[1754118576859,26.0,162.58,162.5,0.7]
[1754118576860,54.9248028,162.54,162.5,0.7]
[1754118577064,11.3448028,162.52,162.48,0.7]
[1754118577251,54.9248028,162.51,162.47,2.465864]
[1754118577453,54.9248028,162.51,162.47,3.165864]
[1754118577847,44.26,162.51,162.47,14.5106668]
[1754118578049,43.58,162.51,162.48,0.7]
[1754118578367,26.0,162.51,162.48,0.7]
[1754118578567,43.58,162.5,162.43,26.0]
[1754118578784,18.22302387,162.49,162.45,0.7]
[1754118579079,43.58,162.48,162.45,18.92302387]
[1754118579362,43.58,162.48,162.46,0.7]
[1754118579743,43.58,162.48,162.39,18.501958]
[1754118579744,43.58,162.48,162.44,18.92302387]
[1754118580186,61.80302387,162.48,162.41,0.7]
[1754118580471,18.90302387,162.47,162.42,18.22302387]
[1754118580644,43.6,162.46,162.42,18.92302387]
[1754118580846,43.6,162.46,162.43,0.7]
[1754118581054,18.90302387,162.49,162.44,18.92302387]
[1754118581241,62.50302387,162.48,162.44,0.7]
[1754118581568,44.28,162.48,162.43,18.22302387]
[1754118581760,0.68,162.47,162.43,18.22302387]
[1754118581968,43.6,162.46,162.43,18.22302387]
[1754118582171,43.6,162.46,162.39,26.0]
[1754118582172,0.68,162.45,162.41,18.22302387]
[1754118582474,43.6,162.44,162.42,18.22302387]
[1754118582643,43.6,162.43,162.42,0.7]
[1754118582843,43.6,162.43,162.42,18.92302387]
[1754118583239,0.68,162.49,162.42,18.92302387]
[1754118583566,18.22302387,162.46,162.41,18.22302387]
[1754118583752,43.62,162.45,162.41,18.22302387]
[1754118583946,43.62,162.45,162.41,0.7]
[1754118584155,43.62,162.45,162.39,26.7]
[1754118584448,0.68,162.44,162.41,18.22302387]
[1754118584765,43.62,162.45,162.41,18.22302387]
[1754118584958,43.62,162.45,162.42,0.7]
[1754118585161,43.62,162.45,162.42,18.22302387]
[1754118585360,0.68,162.44,162.4,18.22302387]
[1754118585560,0.68,162.43,162.39,18.22302387]
[1754118585776,35.00770784,162.44,162.37,0.7]
[1754118585777,44.3,162.42,162.37,0.7]
[1754118585973,44.3,162.42,162.39,18.22302387]
[1754118586178,44.3,162.42,162.38,18.22302387]
[1754118586669,0.68,162.44,162.4,18.22302387]
[1754118586897,44.34,162.43,162.39,18.22302387]
[1754118587054,43.66,162.43,162.39,18.22302387]
[1754118587250,0.68,162.42,162.39,18.22302387]
[1754118587450,0.68,162.41,162.38,18.22302387]
[1754118587658,43.68,162.4,162.39,18.22302387]
[1754118587858,43.68,162.4,162.39,18.92302387]
[1754118588658,43.68,162.4,162.39,18.22302387]
[1754118588979,43.68,162.4,162.34,26.0]
[1754118589159,44.36,162.4,162.37,18.22302387]
[1754118589480,43.68,162.4,162.37,18.22302387]
[1754118589654,44.36,162.4,162.37,18.22302387]
[1754118590067,44.36,162.4,162.35,0.7]
[1754118590283,0.68,162.39,162.36,18.22302387]
[1754118590461,0.68,162.39,162.32,26.7]
[1754118590462,0.68,162.43,162.38,18.22302387]
[1754118590666,44.38,162.42,162.38,18.22302387]
[1754118590868,44.38,162.42,162.35,0.7]
[1754118590869,18.90302387,162.41,162.35,0.7]
[1754118591070,18.90302387,162.41,162.36,18.22302387]
[1754118591268,0.68,162.4,162.36,18.22302387]
[1754118591483,43.76,162.39,162.37,18.22302387]
[1754118591688,43.76,162.39,162.36,18.92302387]
[1754118592283,43.76,162.39,162.37,18.22302387]
[1754118592458,43.76,162.39,162.37,18.92302387]
[1754118592655,43.76,162.39,162.36,18.22302387]
[1754118592996,44.44,162.39,162.36,18.22302387]
[1754118593478,43.76,162.39,162.38,18.22302387]
[1754118593677,0.68,162.44,162.38,18.92302387]
[1754118593881,43.76,162.43,162.42,18.22302387]
[1754118594065,44.44,162.43,162.4,18.22302387]
[1754118594266,0.68,162.42,162.39,18.22302387]
[1754118594482,0.68,162.42,162.38,18.22302387]
[1754118594861,61.98302387,162.43,162.35,0.7]
[1754118595066,0.68,162.41,162.37,18.22302387]
[1754118595263,44.46,162.4,162.35,0.7]
[1754118595581,0.68,162.39,162.37,18.22302387]
[1754118595895,0.68,162.39,162.36,18.22302387]
[1754118596261,43.78,162.4,162.34,0.7]
[1754118596476,43.78,162.4,162.36,18.22302387]
[1754118596762,43.78,162.4,162.37,18.92302387]
[1754118596958,43.78,162.4,162.37,18.22302387]
[1754118597164,0.68,162.39,162.32,26.7]
[1754118597392,0.68,162.39,162.36,18.22302387]
[1754118597689,0.68,162.43,162.38,18.22302387]
[1754118597868,43.8,162.42,162.38,0.7]
[1754118598194,35.00770784,162.4,162.34,0.7]
[1754118598390,43.8,162.39,162.35,18.22302387]
[1754118598579,44.48,162.39,162.35,18.22302387]
[1754118599392,18.90302387,162.38,162.33,18.22302387]
[1754118599691,0.68,162.37,162.33,18.22302387]
[1754118599899,44.48,162.36,162.33,18.22302387]
[1754118600187,44.48,162.36,162.31,0.7]
[1754118600393,44.48,162.36,162.33,18.22302387]
[1754118600581,43.8,162.36,162.32,0.7]
[1754118600786,43.8,162.36,162.33,18.22302387]
[1754118600985,0.68,162.43,162.35,18.22302387]
[1754118601166,0.68,162.43,162.4,18.22302387]
[1754118601372,43.84,162.42,162.4,18.22302387]
[1754118601574,43.84,162.42,162.41,18.22302387]
[1754118601789,43.84,162.42,162.4,18.22302387]
[1754118601992,0.68,162.41,162.36,0.06]
[1754118602167,0.68,162.4,162.38,18.22302387]
[1754118602383,44.52,162.39,162.38,18.22302387]
[1754118602699,43.84,162.39,162.38,18.22302387]
[1754118603008,44.52,162.39,162.36,18.28302387]
[1754118603208,44.52,162.39,162.36,0.06]
[1754118603510,44.52,162.39,162.36,18.28302387]
[1754118603670,0.68,162.38,162.36,0.06]
[1754118604084,0.68,162.37,162.36,0.06]
[1754118604275,0.68,162.38,162.36,0.06]
[1754118604472,43.84,162.39,162.36,18.28302387]
[1754118604803,0.68,162.45,162.38,18.22302387]
[1754118604988,43.9,162.44,162.37,0.69]
[1754118605297,18.90302387,162.43,162.38,18.22302387]
[1754118605476,18.90302387,162.42,162.37,18.22302387]
[1754118605671,43.94,162.41,162.37,18.22302387]
[1754118605881,0.68,162.4,162.37,18.22302387]
[1754118606290,0.68,162.39,162.36,0.06]
[1754118606486,43.92,162.38,162.36,0.06]
[1754118607195,0.68,162.37,162.36,0.06]
[1754118607401,17.46468397,162.37,162.36,0.06]
[1754118607590,35.68770784,162.37,162.36,0.06]
[1754118608600,0.68,162.37,162.36,0.06]
[1754118608778,79.60770784,162.37,162.36,0.06]
[1754118609285,105.60770784,162.37,162.36,0.06]
[1754118609484,105.60770784,162.37,162.34,0.06]
[1754118609485,42.78468397,162.36,162.34,0.06]
[1754118609681,18.22302387,162.35,162.34,0.06]
[1754118609888,35.68770784,162.35,162.34,0.06]
[1754118610471,42.78468397,162.35,162.34,0.06]
[1754118610675,43.96,162.35,162.34,0.06]
[1754118610888,62.18302387,162.35,162.34,0.06]
[1754118611090,62.86302387,162.35,162.34,0.06]
[1754118611289,43.96,162.35,162.34,0.06]
[1754118611799,60.74468397,162.35,162.34,0.06]
[1754118612004,79.64770784,162.35,162.34,0.06]
[1754118612784,85.80723971,162.35,162.34,0.06]
[1754118613287,16.78468397,162.3,162.29,0.1]
[1754118613601,78.98770784,162.3,162.29,0.1]
[1754118613802,79.66770784,162.3,162.29,0.1]
[1754118614007,79.66770784,162.3,162.2,18.32302387]
[1754118614008,16.78468397,162.26,162.2,0.1]
[1754118614220,18.22302387,162.22,162.2,0.1]
[1754118614421,44.02,162.21,162.2,0.1]
[1754118614578,62.92302387,162.21,162.2,0.1]
[1754118614783,79.70770784,162.21,162.2,0.1]
[1754118615210,16.78468397,162.23,162.2,0.1]
[1754118615428,62.24302387,162.21,162.2,0.1]
[1754118615714,79.70770784,162.21,162.2,0.1]
[1754118615889,61.48468397,162.21,162.2,0.1]
[1754118616097,26.0,162.24,162.2,0.1]
[1754118616323,44.04,162.23,162.2,0.79]
[1754118616480,42.78468397,162.25,162.2,0.1]
[1754118616681,0.68,162.28,162.23,18.22302387]
[1754118616931,44.06,162.27,162.24,18.91302387]
[1754118617219,44.42,162.32,162.25,0.69]
[1754118617220,44.06,162.26,162.25,0.69]
[1754118617608,44.06,162.26,162.22,0.69]
[1754118617992,44.06,162.26,162.23,0.69]
[1754118618197,44.06,162.26,162.2,0.1]
[1754118618398,44.06,162.26,162.25,18.22302387]
[1754118618616,44.06,162.26,162.25,18.91302387]
[1754118618795,44.1,162.28,162.25,16.72141287]
[1754118618989,44.1,162.28,162.26,18.22302387]
[1754118619187,44.1,162.28,162.25,18.22302387]
[1754118619392,44.1,162.28,162.26,18.22302387]
[1754118619601,44.1,162.28,162.26,18.91302387]
[1754118620012,44.1,162.28,162.26,18.22302387]
[1754118621002,44.1,162.28,162.27,18.91302387]
[1754118621212,44.42,162.32,162.27,18.91302387]
[1754118621417,44.12,162.31,162.29,18.22302387]
[1754118621990,44.12,162.31,162.28,0.69]
[1754118622195,44.12,162.31,162.29,18.22302387]
[1754118622714,44.12,162.31,162.3,18.22302387]
[1754118623214,44.12,162.31,162.29,18.22302387]
[1754118623521,44.12,162.31,162.3,18.91302387]
[1754118624308,44.22302387,162.37,162.3,18.91302387]
[1754118624309,44.1,162.33,162.3,18.91302387]
[1754118624511,44.1,162.33,162.32,18.22302387]
[1754118624817,44.1,162.33,162.32,18.91302387]
[1754118625405,16.78468397,162.43,162.32,18.91302387]
[1754118625710,0.68,162.41,162.36,18.22302387]
[1754118625912,4.0686678,162.41,162.36,18.22302387]
[1754118626102,0.68,162.4,162.36,18.22302387]
[1754118626309,44.1,162.39,162.36,18.22302387]
[1754118626555,44.1,162.39,162.38,18.22302387]
[1754118626691,44.44,162.44,162.38,18.91302387]
[1754118626896,44.1,162.43,162.41,18.22302387]
[1754118627115,44.1,162.43,162.4,18.22302387]
[1754118627624,0.68,162.47,162.42,18.22302387]
[1754118627811,0.68,162.47,162.43,18.22302387]
[1754118628014,44.14,162.46,162.43,18.22302387]
[1754118628807,44.14,162.46,162.42,0.69]
[1754118629027,44.14,162.46,162.43,18.22302387]
[1754118629706,44.82,162.46,162.43,18.22302387]
[1754118629906,44.14,162.46,162.43,18.22302387]
[1754118630103,44.14,162.46,162.42,18.22302387]
[1754118631201,44.86,162.46,162.42,18.22302387]
[1754118631427,44.14,162.46,162.43,18.22302387]
[1754118631639,44.14,162.46,162.43,18.89302387]
[1754118632135,44.14,162.46,162.43,18.22302387]
[1754118632425,44.86,162.46,162.41,0.67]
[1754118632607,44.86,162.46,162.42,18.22302387]
[1754118632923,44.86,162.46,162.42,18.89302387]
[1754118632924,44.14,162.46,162.42,18.89302387]
[1754118633119,44.86,162.46,162.42,18.22302387]
[1754118633323,0.72,162.45,162.41,18.22302387]
[1754118633635,0.72,162.45,162.42,18.22302387]
[1754118634129,0.72,162.44,162.4,18.22302387]
[1754118634325,0.72,162.44,162.37,0.67]
[1754118634326,44.04,162.43,162.37,0.67]
[1754118634629,44.04,162.43,162.4,18.22302387]
[1754118635014,44.76,162.43,162.39,18.22302387]
[1754118635416,18.22302387,162.41,162.35,0.67]
[1754118635638,44.04,162.4,162.37,18.22302387]
[1754118635827,18.94302387,162.39,162.35,18.22302387]
[1754118636013,18.94302387,162.38,162.33,18.22302387]
[1754118636212,44.06,162.37,162.33,18.22302387]
[1754118636414,44.06,162.37,162.33,18.89302387]
[1754118636615,44.06,162.37,162.34,18.22302387]
[1754118637126,44.06,162.37,162.32,0.67]
[1754118637330,44.06,162.37,162.34,18.22302387]
[1754118637932,18.94302387,162.36,162.32,18.22302387]
[1754118638240,0.72,162.35,162.32,18.22302387]
[1754118638443,44.04,162.34,162.32,18.22302387]
[1754118638934,18.94302387,162.33,162.26,0.67]
[1754118639116,18.22302387,162.32,162.27,18.22302387]
[1754118639318,44.04,162.31,162.27,18.22302387]
[1754118639735,44.04,162.31,162.28,18.22302387]
[1754118641047,0.72,162.3,162.26,18.22302387]
[1754118641241,10.0,162.41,162.29,18.22302387]
[1754118641242,5.09307914,162.41,162.29,18.22302387]
[1754118641426,18.94302387,162.4,162.34,18.22302387]
[1754118641613,44.54,162.39,162.34,18.22302387]
[1754118641812,44.54,162.39,162.34,18.89302387]
[1754118642322,44.54,162.39,162.36,18.22302387]
[1754118642515,45.26,162.39,162.36,18.22302387]
[1754118642823,45.26,162.39,162.37,18.22302387]
[1754118643531,45.26,162.39,162.34,0.67]
[1754118643532,44.54,162.39,162.34,0.67]
[1754118643732,44.54,162.39,162.38,18.22302387]
[1754118643907,44.54,162.39,162.35,0.67]
[1754118644106,44.54,162.39,162.38,18.22302387]
[1754118644552,0.72,162.44,162.38,18.22302387]
[1754118644853,44.5,162.43,162.4,18.22302387]
[1754118645026,45.22,162.43,162.36,0.67]
[1754118645344,45.22,162.43,162.41,18.22302387]
[1754118645641,45.22,162.43,162.36,0.67]
[1754118645854,45.22,162.43,162.41,18.22302387]
[1754118646024,44.5,162.43,162.42,18.22302387]
[1754118646345,45.22,162.43,162.42,18.22302387]
[1754118646947,44.5,162.43,162.42,18.22302387]
[1754118647627,44.5,162.43,162.42,18.89302387]
[1754118648046,0.03,162.48,162.42,18.89302387]
[1754118648222,0.03,162.48,162.47,18.22302387]
[1754118648554,44.51,162.48,162.47,18.22302387]
[1754118648762,45.23,162.48,162.46,18.22302387]
[1754118648970,0.72,162.47,162.4,0.67]
[1754118649136,0.72,162.47,162.46,18.22302387]
[1754118649322,0.72,162.47,162.43,18.22302387]
[1754118649529,18.94302387,162.47,162.41,18.22302387]
[1754118649737,0.72,162.46,162.42,18.22302387]
[1754118649952,18.22302387,162.43,162.3,10.0]
[1754118650124,62.70302387,162.42,162.37,18.22302387]
[1754118650329,0.72,162.41,162.37,18.22302387]
[1754118650669,0.72,162.4,162.38,18.22302387]
[1754118650948,44.48,162.42,162.34,18.22302387]
[1754118650949,18.94302387,162.39,162.34,18.22302387]
[1754118651142,62.70302387,162.38,162.33,18.22302387]
[1754118651359,0.72,162.37,162.33,18.22302387]
[1754118651543,0.72,162.36,162.33,18.22302387]
[1754118651850,44.48,162.38,162.34,18.22302387]
[1754118652040,44.48,162.38,162.35,0.67]
[1754118652346,44.48,162.38,162.37,18.22302387]
[1754118653633,44.48,162.38,162.36,18.22302387]
[1754118653832,0.72,162.37,162.27,16.78468397]
[1754118654033,18.94302387,162.37,162.32,18.22302387]
[1754118654344,0.72,162.36,162.32,18.22302387]
[1754118654542,0.72,162.35,162.32,18.22302387]
[1754118654744,44.46,162.34,162.33,18.22302387]
[1754118654950,44.46,162.34,162.31,18.22302387]
[1754118655365,45.18,162.34,162.31,18.22302387]
[1754118655671,44.46,162.34,162.31,18.22302387]
[1754118656538,44.46,162.34,162.32,18.22302387]
[1754118657262,44.44,162.35,162.33,18.89302387]
[1754118657436,44.44,162.36,162.29,26.0]
[1754118657636,44.44,162.36,162.35,18.22302387]
[1754118659058,44.44,162.36,162.35,18.89302387]
[1754118659272,44.44,162.36,162.35,18.22302387]
[1754118660144,45.16,162.36,162.35,18.22302387]
[1754118660563,45.16,162.36,162.33,18.22302387]
[1754118660764,0.72,162.35,162.33,18.22302387]
[1754118661642,0.72,162.35,162.32,18.22302387]
[1754118661957,0.72,162.34,162.32,18.22302387]
[1754118662165,44.44,162.36,162.32,18.22302387]
[1754118662389,45.16,162.36,162.32,18.22302387]
[1754118663059,44.44,162.36,162.35,18.22302387]
[1754118663261,44.38,162.37,162.35,18.22302387]
[1754118663478,44.38,162.37,162.36,18.22302387]
[1754118666394,44.38,162.37,162.36,18.94302387]
[1754118666594,44.38,162.37,162.36,18.22302387]
[1754118666958,44.38,162.37,162.36,18.94302387]
[1754118667402,18.22302387,162.47,162.36,37.16604774]
[1754118667586,0.72,162.45,162.43,18.22302387]
[1754118667789,4.81669426,162.45,162.43,18.22302387]
[1754118667964,0.72,162.44,162.42,18.22302387]
[1754118668361,0.72,162.44,162.39,0.72]
[1754118668688,0.72,162.43,162.42,18.22302387]
[1754118668883,4.81669426,162.45,162.42,18.22302387]
[1754118669390,0.72,162.44,162.42,18.22302387]
[1754118669592,4.09669426,162.45,162.42,18.22302387]
[1754118669902,0.72,162.44,162.42,18.22302387]
[1754118670071,4.09669426,162.45,162.42,18.22302387]
[1754118670397,0.72,162.43,162.4,18.22302387]
[1754118670786,44.36,162.44,162.35,0.72]
[1754118670787,0.72,162.42,162.35,0.72]
[1754118670999,44.36,162.41,162.38,18.22302387]
[1754118671310,44.36,162.41,162.4,18.22302387]
[1754118672314,44.36,162.41,162.4,18.94302387]
[1754118672517,0.72,162.49,162.4,18.94302387]
[1754118672816,4.09798046,162.51,162.47,18.22302387]
[1754118673110,44.36,162.5,162.47,18.22302387]
[1754118673420,44.42,162.54,162.47,18.94302387]
[1754118673706,44.36,162.53,162.47,63.16604774]
[1754118674305,44.36,162.53,162.47,18.94302387]
[1754118674488,0.72,162.52,162.44,0.72]
[1754118674697,0.75,162.48,162.45,18.22302387]
[1754118675080,0.75,162.48,162.42,0.72]
[1754118675081,0.03,162.48,162.47,18.22302387]
[1754118675511,0.03,162.48,162.47,18.94302387]
[1754118677528,6.6307818,162.63,162.47,53.95073171]
[1754118677529,44.38,162.55,162.47,53.95073171]
[1754118677737,44.38,162.55,162.54,18.22302387]
[1754118678029,44.38,162.59,162.54,18.94302387]
[1754118678234,44.38,162.59,162.58,18.22302387]
[1754118679404,44.38,162.59,162.58,18.94302387]
[1754118679812,44.38,162.59,162.58,18.22302387]
[1754118681306,44.39,162.63,162.58,18.94302387]
[1754118681506,44.39,162.63,162.62,18.22302387]
[1754118683708,45.11,162.63,162.62,18.22302387]
[1754118684332,44.39,162.63,162.62,18.22302387]
[1754118685431,45.11,162.63,162.59,18.22302387]
[1754118685733,0.72,162.62,162.6,18.22302387]
[1754118685942,0.72,162.62,162.61,18.22302387]
[1754118686125,0.72,162.62,162.6,18.22302387]
[1754118686437,44.39,162.63,162.61,18.22302387]
[1754118686823,44.39,162.63,162.62,18.22302387]
[1754118687225,45.11,162.63,162.6,18.22302387]
[1754118687429,0.72,162.62,162.55,26.0]
[1754118687743,0.72,162.62,162.59,18.22302387]
[1754118688316,44.39,162.63,162.61,18.22302387]
[1754118688524,44.39,162.63,162.62,18.22302387]
[1754118692447,45.11,162.63,162.56,18.943024]
[1754118692629,18.94302387,162.62,162.57,18.22302387]
[1754118692946,0.72,162.61,162.58,18.22302387]
[1754118693127,44.24,162.6,162.58,18.22302387]
[1754118693841,44.24,162.6,162.54,0.72]
[1754118693842,44.24,162.6,162.59,18.22302387]
[1754118694047,44.24,162.6,162.58,18.22302387]
[1754118694048,44.96,162.6,162.58,18.22302387]
[1754118694849,44.24,162.6,162.55,26.0]
[1754118695150,0.72,162.59,162.56,18.22302387]
[1754118695320,0.72,162.59,162.57,18.22302387]
[1754118695951,44.24,162.6,162.57,18.22302387]
[1754118696150,44.24,162.6,162.56,18.22302387]
[1754118696151,0.72,162.59,162.56,18.22302387]
[1754118696445,18.22302387,162.58,162.53,18.22302387]
[1754118696748,44.92,162.57,162.51,0.72]
[1754118697152,44.92,162.57,162.51,26.72]
[1754118697354,18.94302387,162.56,162.48,0.72]
[1754118697540,18.94302387,162.56,162.51,18.22302387]
[1754118697738,0.72,162.55,162.52,18.22302387]
[1754118697938,44.24,162.54,162.52,18.22302387]
[1754118698321,44.24,162.54,162.53,18.22302387]
[1754118699237,0.72,162.58,162.53,18.22302387]
[1754118699438,0.72,162.58,162.48,61.00770784]
[1754118699439,26.72,162.61,162.57,18.22302387]
[1754118699644,44.94,162.6,162.57,18.22302387]
[1754118699849,0.72,162.59,162.57,18.22302387]
[1754118700242,0.72,162.58,162.55,18.22302387]
[1754118700439,26.0,162.61,162.52,18.22302387]
[1754118700440,63.18302387,162.57,162.52,18.22302387]
[1754118700757,63.18302387,162.57,162.47,0.06]
[1754118700758,18.94302387,162.56,162.5,18.22302387]
[1754118700946,18.94302387,162.55,162.5,18.22302387]
[1754118701123,63.18302387,162.54,162.49,18.22302387]
[1754118701324,0.72,162.53,162.49,18.22302387]
[1754118701558,0.72,162.53,162.5,18.22302387]
[1754118701751,0.72,162.52,162.49,18.22302387]
[1754118701946,62.46302387,162.54,162.5,18.22302387]
[1754118701947,44.24,162.51,162.5,18.22302387]
[1754118702248,44.24,162.51,162.49,18.22302387]
[1754118702450,44.24,162.51,162.5,18.22302387]
[1754118703128,44.24,162.51,162.5,18.94302387]
[1754118703537,44.24,162.51,162.5,18.22302387]
[1754118704267,44.96,162.51,162.47,18.28302387]
[1754118704467,0.72,162.5,162.47,18.28302387]
[1754118705168,44.24,162.51,162.47,18.28302387]
[1754118705463,44.24,162.51,162.48,18.22302387]
[1754118706232,44.24,162.51,162.5,18.22302387]
[1754118706639,44.24,162.51,162.5,18.94302387]
[1754118707039,44.24,162.51,162.5,18.22302387]
[1754118707238,44.24,162.51,162.47,0.06]
[1754118707239,44.24,162.51,162.49,18.22302387]
[1754118707444,44.24,162.51,162.5,18.22302387]
[1754118707656,44.24,162.52,162.5,18.94302387]
[1754118707965,44.24,162.52,162.51,18.22302387]
[1754118708272,44.24,162.52,162.51,18.94302387]
[1754118709359,18.22302387,162.61,162.51,18.94302387]
[1754118709657,44.96,162.6,162.57,18.22302387]
[1754118709853,0.72,162.59,162.57,18.22302387]
[1754118710056,44.24,162.6,162.58,18.22302387]
[1754118710843,44.24,162.6,162.59,18.22302387]
[1754118711463,44.96,162.6,162.56,18.22302387]
[1754118711662,18.22302387,162.58,162.51,26.0]
[1754118711868,44.98,162.57,162.53,18.22302387]
[1754118712053,44.26,162.57,162.53,18.22302387]
[1754118712261,0.72,162.56,162.53,18.22302387]
[1754118713069,44.26,162.57,162.5,0.06]
[1754118713070,18.22302387,162.54,162.5,0.06]
[1754118713247,18.22302387,162.52,162.5,0.06]
[1754118713446,44.24,162.53,162.5,18.28302387]
[1754118713670,44.26,162.55,162.52,18.22302387]
[1754118713876,44.26,162.55,162.5,0.78]
[1754118714076,44.26,162.55,162.51,0.72]
[1754118714470,44.26,162.55,162.53,18.22302387]
[1754118714867,0.72,162.54,162.5,0.06]
[1754118715067,44.26,162.55,162.51,18.22302387]
[1754118715277,44.26,162.55,162.53,18.22302387]
[1754118715675,0.72,162.54,162.51,18.22302387]
[1754118715996,0.72,162.53,162.5,18.28302387]
[1754118716204,26.0,162.59,162.5,0.06]
[1754118716205,44.28,162.52,162.5,0.06]
[1754118716494,44.28,162.53,162.51,18.22302387]
[1754118716661,44.28,162.53,162.52,18.22302387]
[1754118717062,44.28,162.53,162.52,18.94302387]
[1754118717359,44.28,162.56,162.5,0.06]
[1754118717565,0.72,162.55,162.51,18.22302387]
[1754118717757,44.28,162.56,162.53,18.22302387]
[1754118718316,44.28,162.56,162.54,18.22302387]
[1754118718869,45.0,162.56,162.53,18.22302387]
[1754118719375,44.5,162.56,162.53,18.22302387]
[1754118719884,43.78,162.56,162.53,18.22302387]
[1754118720070,0.72,162.55,162.52,18.22302387]
[1754118720273,0.72,162.54,162.5,18.28302387]
[1754118720592,45.06,162.53,162.5,18.28302387]
[1754118721452,0.72,162.56,162.52,18.22302387]
[1754118721656,0.72,162.59,162.55,18.22302387]
[1754118721954,63.28302387,162.58,162.53,18.22302387]
[1754118722162,18.22302387,162.55,162.5,18.28302387]
[1754118722386,45.06,162.54,162.5,18.28302387]
[1754118722591,45.06,162.54,162.51,18.22302387]
[1754118722883,146.1,162.57,162.5,0.06]
[1754118722884,44.36,162.55,162.52,0.66]
[1754118723084,44.36,162.55,162.5,18.28302387]
[1754118723284,0.72,162.54,162.5,18.28302387]